[Event "WJCC U20 Girls 2019"]
[Site "New Delhi"]
[Date "2019.10.19"]
[Round "6.39"]
[White "Tamarozi, Isabelle"]
[Black "Noshin, Anjum"]
[Result "1-0"]
[ECO "C45"]
[WhiteElo "2029"]
[BlackElo "1793"]
[Annotator "NA"]
[PlyCount "33"]
[EventDate "2019.10.15"]
[EventType "swiss"]
[EventCountry "IND"]
[SourceTitle "playchess.com"]
[Source "ChessBase"]
[SourceQuality "1"]
[TimeControl "40/5400+30:1800+30"]

1. e4 {[%emt 0:00:00]} e5 {[%emt 0:00:00]} 2. Nf3 {[%emt 0:00:00]} Nc6 {[%emt 0:00:00]} 3. d4 {[%emt 0:00:16]} exd4 {[%emt 0:00:00]} 4. Nxd4 {[%emt 0:00:20]} Nf6 {[%emt 0:00:15]} 5. Nxc6 {[%emt 0:00:31]} bxc6 {[%emt 0:00:10]} 6. e5 {[%emt 0:00:52]} Qe7 {[%emt 0:01:12]} 7. Qe2 {[%emt 0:00:29]} Nd5 {[%emt 0:00:07]} 8. h4 {[%emt 0:01:02]} a5 {[%emt 0:00:22]} 9. Nd2 {[%emt 0:04:46]} Ba6 {[%emt 0:06:48]} 10. c4 {[%emt 0:03:51]} Nb6 {[%emt 0:07:11]} 11. b3 {[%emt 0:06:48]} Qe6 {[%emt 0:01:45]} 12. Bb2 {[%emt 0:05:30]} g6 {[%emt 0:21:04]} 13. h5 {[%emt 0:09:59]} a4 {[%emt 0:13:26]} 14. g3 {[%emt 0:08:51]} Bb7 {[%emt 0:10:47]} 15. Bh3 {[%emt 0:07:02]} Qe7 {[%emt 0:02:50]} 16. e6 {[%emt 0:14:18]} Rg8 {[%emt 0:06:34]} 17. Bf6 {[%emt 0:03:03]} 1-0

[Event "WJCC U20 Girls 2019"]
[Site "New Delhi"]
[Date "2019.10.19"]
[Round "6.40"]
[White "Dahampriya, H K T Dewnethmie"]
[Black "Ananya, Suresh"]
[Result "0-1"]
[ECO "B31"]
[WhiteElo "1629"]
[BlackElo "1896"]
[Annotator "NA"]
[PlyCount "62"]
[EventDate "2019.10.15"]
[EventType "swiss"]
[EventCountry "IND"]
[SourceTitle "playchess.com"]
[Source "ChessBase"]
[SourceQuality "1"]
[TimeControl "40/5400+30:1800+30"]

1. e4 {[%emt 0:00:00]} c5 {[%emt 0:00:00]} 2. Nf3 {[%emt 0:00:00]} Nc6 {[%emt 0:00:23]} 3. Bb5 {[%emt 0:00:00]} g6 {[%emt 0:01:24]} 4. O-O {[%emt 0:00:11]} Bg7 {[%emt 0:00:17]} 5. Bxc6 {[%emt 0:00:37]} bxc6 {[%emt 0:00:12]} 6. d3 {[%emt 0:00:09]} e5 {[%emt 0:04:53]} 7. c4 {[%emt 0:03:44]} Ne7 {[%emt 0:01:21]} 8. Nc3 {[%emt 0:04:29]} O-O {[%emt 0:00:42]} 9. Nd2 {[%emt 0:00:37]} f5 {[%emt 0:05:19]} 10. f4 {[%emt 0:00:13]} d5 {[%emt 0:02:29]} 11. exd5 {[%emt 0:23:16]} cxd5 {[%emt 0:04:36]} 12. fxe5 {[%emt 0:00:18]} Bxe5 {[%emt 0:00:54]} 13. Ne2 {[%emt 0:10:41]} dxc4 {[%emt 0:11:12]} 14. dxc4 {[%emt 0:00:29]} Rb8 {[%emt 0:02:14]} 15. Qc2 {[%emt 0:03:36]} Nc6 {[%emt 0:09:09]} 16. Nf3 {[%emt 0:00:30]} Bf6 {[%emt 0:01:43]} 17. a3 {[%emt 0:02:44]} g5 {[%emt 0:05:39]} 18. Rb1 {[%emt 0:06:00]} f4 {[%emt 0:04:19]} 19. Kh1 {[%emt 0:07:33]} Ne7 {[%emt 0:05:20]} 20. Rd1 {[%emt 0:02:44]} Qe8 {[%emt 0:01:07]} 21. Qd2 {[%emt 0:02:54]} Bf5 {[%emt 0:03:10]} 22. Ra1 {[%emt 0:00:05]} Qh5 {[%emt 0:01:44]} 23. Nc3 {[%emt 0:08:22]} Bg4 {[%emt 0:07:27]} 24. Qf2 {[%emt 0:02:04]} Nf5 {[%emt 0:01:04]} 25. Ne4 {[%emt 0:03:40]} Nd4 {[%emt 0:02:17]} 26. Nxf6+ {[%emt 0:00:23]} Rxf6 {[%emt 0:00:12]} 27. Rf1 {[%emt 0:01:12]} Bxf3 {[%emt 0:00:35]} 28. gxf3 {[%emt 0:00:07]} Re8 {[%emt 0:00:31]} 29. Qg1 {[%emt 0:03:57]} Re2 {[%emt 0:00:53]} 30. Rf2 {[%emt 0:03:48]} Nxf3 {[%emt 0:00:16]} 31. Qg2 {[%emt 0:00:23]} Re1+ {[%emt 0:00:09]} 0-1

[Event "WJCC U20 Girls 2019"]
[Site "New Delhi"]
[Date "2019.10.19"]
[Round "6.41"]
[White "Abdala Cancino, Patricia Anastas"]
[Black "Rindhiya V"]
[Result "0-1"]
[ECO "C54"]
[WhiteElo "1608"]
[BlackElo "1817"]
[Annotator "NA"]
[PlyCount "76"]
[EventDate "2019.10.15"]
[EventType "swiss"]
[EventCountry "IND"]
[SourceTitle "playchess.com"]
[Source "ChessBase"]
[SourceQuality "1"]
[TimeControl "40/5400+30:1800+30"]

1. e4 {[%emt 0:04:04]} e5 {[%emt 0:00:00]} 2. Nf3 {[%emt 0:01:55]} Nc6 {[%emt 0:00:00]} 3. Bc4 {[%emt 0:00:43]} Bc5 {[%emt 0:00:00]} 4. c3 {[%emt 0:00:05]} Nf6 {[%emt 0:00:00]} 5. d3 {[%emt 0:00:10]} d6 {[%emt 0:00:00]} 6. Bb3 {[%emt 0:00:27]} a6 {[%emt 0:00:06]} 7. h3 {[%emt 0:01:00]} h6 {[%emt 0:00:12]} 8. Nbd2 {[%emt 0:00:07]} O-O {[%emt 0:00:06]} 9. g4 {[%emt 0:00:50]} Nh7 {[%emt 0:22:34]} 10. Nf1 {[%emt 0:02:26]} Be6 {[%emt 0:01:58]} 11. Ng3 {[%emt 0:00:32]} d5 {[%emt 0:03:36]} 12. Qe2 {[%emt 0:00:22]} dxe4 {[%emt 0:03:56]} 13. dxe4 {[%emt 0:00:46]} Na5 {[%emt 0:17:40]} 14. Bxe6 {[%emt 0:03:01]} fxe6 {[%emt 0:00:08]} 15. b4 {[%emt 0:00:03]} Ba7 {[%emt 0:17:22]} 16. bxa5 {[%emt 0:00:26]} Qf6 {[%emt 0:00:07]} 17. Be3 {[%emt 0:05:00]} Bxe3 {[%emt 0:00:42]} 18. Qxe3 {[%emt 0:00:03]} Qxf3 {[%emt 0:00:05]} 19. Qxf3 {[%emt 0:06:01]} Rxf3 {[%emt 0:00:02]} 20. Rb1 {[%emt 0:01:57]} Rxc3 {[%emt 0:01:23]} 21. Rxb7 {[%emt 0:00:04]} Rc5 {[%emt 0:07:55]} 22. O-O {[%emt 0:01:49]} Rf8 {[%emt 0:03:59]} 23. Ra7 {[%emt 0:02:37]} Rxa5 {[%emt 0:01:32]} 24. Rxc7 {[%emt 0:00:02]} Rxa2 {[%emt 0:00:16]} 25. Nh5 {[%emt 0:03:03]} Ng5 {[%emt 0:13:13]} 26. Rxg7+ {[%emt 0:02:45]} Kh8 {[%emt 0:00:01]} 27. Rg6 {[%emt 0:00:38]} Nxh3+ {[%emt 0:01:51]} 28. Kg2 {[%emt 0:00:10]} Nxf2 {[%emt 0:01:31]} 29. Rxh6+ {[%emt 0:00:58]} Kg8 {[%emt 0:00:01]} 30. Rg6+ {[%emt 0:04:53]} Kh7 {[%emt 0:00:03]} 31. Rg7+ {[%emt 0:01:13]} Kh6 {[%emt 0:01:07]} 32. Rb1 {[%emt 0:07:27]} Nxg4+ {[%emt 0:00:12]} 33. Kg3 {[%emt 0:00:13]} Nf6 {[%emt 0:01:09]} 34. Nxf6 {[%emt 0:01:33]} Kxg7 {[%emt 0:00:02]} 35. Nd7 {[%emt 0:00:23]} Ra3+ {[%emt 0:00:49]} 36. Kg2 {[%emt 0:00:45]} Rf4 {[%emt 0:00:34]} 37. Rb7 {[%emt 0:00:15]} Rf7 {[%emt 0:00:28]} 38. Nc5 {[%emt 0:00:42]} Rxb7 {[%emt 0:00:06]} 0-1

[Event "WJCC U20 Girls 2019"]
[Site "New Delhi"]
[Date "2019.10.19"]
[Round "6.42"]
[White "Du Plessis, Anika"]
[Black "Bhagyashree Patil"]
[Result "0-1"]
[ECO "C45"]
[WhiteElo "1594"]
[BlackElo "1802"]
[Annotator "NA"]
[PlyCount "78"]
[EventDate "2019.10.15"]
[EventType "swiss"]
[EventCountry "IND"]
[SourceTitle "playchess.com"]
[Source "ChessBase"]
[SourceQuality "1"]
[TimeControl "40/5400+30:1800+30"]

1. e4 {[%emt 0:00:00]} e5 {[%emt 0:00:00]} 2. Nf3 {[%emt 0:00:00]} Nc6 {[%emt 0:00:00]} 3. d4 {[%emt 0:00:00]} exd4 {[%emt 0:00:00]} 4. Nxd4 {[%emt 0:00:00]} Bc5 {[%emt 0:00:15]} 5. Nb3 {[%emt 0:01:41]} Bb6 {[%emt 0:00:10]} 6. Be2 {[%emt 0:03:38]} Nf6 {[%emt 0:01:32]} 7. Nc3 {[%emt 0:01:36]} a5 {[%emt 0:01:52]} 8. O-O {[%emt 0:03:59]} d6 {[%emt 0:01:04]} 9. Bg5 {[%emt 0:02:28]} h6 {[%emt 0:05:04]} 10. Bh4 {[%emt 0:04:31]} g5 {[%emt 0:07:30]} 11. Bg3 {[%emt 0:00:12]} h5 {[%emt 0:00:25]} 12. h4 {[%emt 0:03:59]} g4 {[%emt 0:03:43]} 13. Bb5 {[%emt 0:06:47]} Bd7 {[%emt 0:06:19]} 14. Bxc6 {[%emt 0:08:59]} Bxc6 {[%emt 0:02:06]} 15. e5 {[%emt 0:01:14]} dxe5 {[%emt 0:01:32]} 16. Qxd8+ {[%emt 0:02:24]} Rxd8 {[%emt 0:01:15]} 17. Bxe5 {[%emt 0:03:21]} Rh6 {[%emt 0:00:58]} 18. Nc1 {[%emt 0:09:00]} Kf8 {[%emt 0:07:42]} 19. Nd3 {[%emt 0:02:36]} Ne4 {[%emt 0:01:20]} 20. Bf4 {[%emt 0:09:46]} Re6 {[%emt 0:01:53]} 21. Nxe4 {[%emt 0:02:56]} Bxe4 {[%emt 0:00:36]} 22. Ne5 {[%emt 0:08:57]} Rd4 {[%emt 0:17:06]} 23. c3 {[%emt 0:07:07]} Rd5 {[%emt 0:01:16]} 24. Nc4 {[%emt 0:00:38]} Ba7 {[%emt 0:01:58]} 25. Ne3 {[%emt 0:02:03]} Rd2 {[%emt 0:01:51]} 26. b3 {[%emt 0:06:23]} g3 {[%emt 0:01:39]} 27. Nd1 {[%emt 0:02:41]} gxf2+ {[%emt 0:03:34]} 28. Nxf2 {[%emt 0:00:58]} Rb2 {[%emt 0:02:01]} 29. Rad1 {[%emt 0:01:33]} Bc6 {[%emt 0:02:49]} 30. Rd8+ {[%emt 0:01:29]} Kg7 {[%emt 0:01:06]} 31. Rd2 {[%emt 0:00:24]} Rxd2 {[%emt 0:00:34]} 32. Bxd2 {[%emt 0:00:03]} Rg6 {[%emt 0:00:34]} 33. Bg5 {[%emt 0:01:55]} f6 {[%emt 0:00:14]} 34. Kh2 {[%emt 0:01:28]} fxg5 {[%emt 0:00:39]} 35. Nd3 {[%emt 0:00:29]} Rf6 {[%emt 0:01:31]} 36. Re1 {[%emt 0:00:56]} gxh4 {[%emt 0:00:41]} 37. Kh3 {[%emt 0:00:23]} Bf2 {[%emt 0:00:40]} 38. Re7+ {[%emt 0:01:10]} Kf8 {[%emt 0:00:14]} 39. Re5 {[%emt 0:00:32]} Bg3 {[%emt 0:00:25]} 0-1

[Event "WJCC U20 Girls 2019"]
[Site "New Delhi"]
[Date "2019.10.19"]
[Round "6.43"]
[White "Figueroa Bernal, Julia Dennis"]
[Black "Djuric, Anja"]
[Result "1-0"]
[ECO "B12"]
[WhiteElo "1777"]
[BlackElo "1493"]
[Annotator "NA"]
[PlyCount "73"]
[EventDate "2019.10.15"]
[EventType "swiss"]
[EventCountry "IND"]
[SourceTitle "playchess.com"]
[Source "ChessBase"]
[SourceQuality "1"]
[TimeControl "40/5400+30:1800+30"]

1. e4 {[%emt 0:00:00]} c6 {[%emt 0:00:00]} 2. d4 {[%emt 0:00:00]} d5 {[%emt 0:00:00]} 3. e5 {[%emt 0:00:00]} Bf5 {[%emt 0:00:22]} 4. Nc3 {[%emt 0:00:17]} e6 {[%emt 0:00:29]} 5. g4 {[%emt 0:00:08]} Bg6 {[%emt 0:00:32]} 6. Nge2 {[%emt 0:00:43]} c5 {[%emt 0:04:00]} 7. h4 {[%emt 0:00:59]} h6 {[%emt 0:01:36]} 8. Be3 {[%emt 0:12:00]} Nc6 {[%emt 0:01:40]} 9. f4 {[%emt 0:07:28]} Be4 {[%emt 0:02:10]} 10. Nxe4 {[%emt 0:00:23]} dxe4 {[%emt 0:00:04]} 11. dxc5 {[%emt 0:02:46]} Qa5+ {[%emt 0:03:06]} 12. c3 {[%emt 0:05:14]} Nge7 {[%emt 0:07:04]} 13. b4 {[%emt 0:02:21]} Qc7 {[%emt 0:00:40]} 14. Nd4 {[%emt 0:03:40]} Nxd4 {[%emt 0:01:16]} 15. Qxd4 {[%emt 0:00:49]} Nc6 {[%emt 0:00:40]} 16. Qxe4 {[%emt 0:00:14]} O-O-O {[%emt 0:01:46]} 17. Bb5 {[%emt 0:04:57]} Be7 {[%emt 0:02:03]} 18. Bxc6 {[%emt 0:00:29]} bxc6 {[%emt 0:00:03]} 19. a4 {[%emt 0:02:07]} g5 {[%emt 0:04:28]} 20. hxg5 {[%emt 0:04:08]} hxg5 {[%emt 0:00:30]} 21. Rxh8 {[%emt 0:00:06]} Rxh8 {[%emt 0:00:09]} 22. f5 {[%emt 0:00:27]} Rh2 {[%emt 0:04:27]} 23. f6 {[%emt 0:06:38]} Bxf6 {[%emt 0:01:29]} 24. exf6 {[%emt 0:00:20]} Qg3+ {[%emt 0:00:09]} 25. Kd1 {[%emt 0:00:09]} Kd7 {[%emt 0:00:28]} 26. b5 {[%emt 0:03:28]} Qh3 {[%emt 0:01:18]} 27. Bd2 {[%emt 0:03:02]} Rh1+ {[%emt 0:02:53]} 28. Be1 {[%emt 0:00:25]} Qxc3 {[%emt 0:00:55]} 29. Qxc6+ {[%emt 0:02:49]} Kd8 {[%emt 0:00:07]} 30. Qa8+ {[%emt 0:04:24]} Kd7 {[%emt 0:00:17]} 31. Qxa7+ {[%emt 0:00:38]} Kd8 {[%emt 0:00:16]} 32. Qe7+ {[%emt 0:02:17]} Kc8 {[%emt 0:00:20]} 33. Qe8+ {[%emt 0:00:56]} Kb7 {[%emt 0:00:44]} 34. Qd7+ {[%emt 0:01:02]} Kb8 {[%emt 0:00:26]} 35. Qd8+ {[%emt 0:00:45]} Kb7 {[%emt 0:00:16]} 36. c6+ {[%emt 0:00:21]} Ka7 {[%emt 0:00:33]} 37. Qc7+ {[%emt 0:00:10]} 1-0

[Event "WJCC U20 Girls 2019"]
[Site "New Delhi"]
[Date "2019.10.19"]
[Round "6.44"]
[White "Arushi Kotwal"]
[Black "Shivika Rohilla"]
[Result "1/2-1/2"]
[ECO "A05"]
[WhiteElo "1657"]
[BlackElo "1721"]
[Annotator "NA"]
[PlyCount "113"]
[EventDate "2019.10.15"]
[EventType "swiss"]
[EventCountry "IND"]
[SourceTitle "playchess.com"]
[Source "ChessBase"]
[SourceQuality "1"]
[TimeControl "40/5400+30:1800+30"]

1. Nf3 {[%emt 0:00:00]} Nf6 {[%emt 0:00:00]} 2. g3 {[%emt 0:00:00]} d5 {[%emt 0:00:00]} 3. d4 {[%emt 0:00:03]} e6 {[%emt 0:00:06]} 4. c4 {[%emt 0:00:08]} dxc4 {[%emt 0:00:07]} 5. Qa4+ {[%emt 0:00:22]} Nbd7 {[%emt 0:00:16]} 6. Bg2 {[%emt 0:00:14]} a6 {[%emt 0:00:43]} 7. Qxc4 {[%emt 0:00:07]} b5 {[%emt 0:00:14]} 8. Qc2 {[%emt 0:01:08]} Bb7 {[%emt 0:00:27]} 9. O-O {[%emt 0:07:15]} c5 {[%emt 0:01:08]} 10. Bg5 {[%emt 0:03:10]} Rc8 {[%emt 0:06:04]} 11. Qd1 {[%emt 0:06:54]} cxd4 {[%emt 0:01:18]} 12. Nxd4 {[%emt 0:00:36]} Bxg2 {[%emt 0:00:24]} 13. Kxg2 {[%emt 0:00:05]} Bc5 {[%emt 0:05:24]} 14. Nc3 {[%emt 0:06:55]} Qb6 {[%emt 0:01:51]} 15. Nf3 {[%emt 0:09:15]} O-O {[%emt 0:01:09]} 16. Qb3 {[%emt 0:03:09]} Rfd8 {[%emt 0:07:42]} 17. Rad1 {[%emt 0:16:31]} Be7 {[%emt 0:05:26]} 18. Bxf6 {[%emt 0:10:52]} Nxf6 {[%emt 0:03:48]} 19. Rxd8+ {[%emt 0:02:34]} Rxd8 {[%emt 0:00:25]} 20. Rd1 {[%emt 0:00:39]} Rd4 21. Rd3 Rxd3 {[%emt 0:01:42]} 22. Qc2 Rd1 23. Qxd1 {[%emt 0:01:11]} Qd6 {[%emt 0:02:10]} 24. Qxd6 {[%emt 0:06:36]} Bxd6 {[%emt 0:00:07]} 25. a3 {[%emt 0:00:32]} Kf8 {[%emt 0:01:22]} 26. h3 {[%emt 0:06:36]} Ke7 {[%emt 0:01:14]} 27. Kf1 {[%emt 0:00:14]} Nd7 {[%emt 0:01:15]} 28. Nd4 {[%emt 0:02:24]} Nb6 {[%emt 0:03:18]} 29. Nc2 {[%emt 0:06:53]} Nc4 {[%emt 0:00:25]} 30. Nd1 {[%emt 0:00:15]} Bc5 {[%emt 0:02:10]} 31. e3 {[%emt 0:02:16]} Kd6 {[%emt 0:06:02]} 32. Ke2 {[%emt 0:00:09]} a5 {[%emt 0:02:17]} 33. b4 {[%emt 0:00:47]} Bb6 {[%emt 0:01:35]} 34. Nc3 {[%emt 0:02:41]} Kc6 {[%emt 0:01:37]} 35. Kd3 {[%emt 0:03:45]} Nb2+ {[%emt 0:01:17]} 36. Ke2 {[%emt 0:00:15]} a4 {[%emt 0:01:39]} 37. Kf3 {[%emt 0:02:05]} Nc4 {[%emt 0:00:23]} 38. Ke2 {[%emt 0:00:27]} f5 {[%emt 0:04:06]} 39. Kd3 {[%emt 0:01:08]} Nb2+ {[%emt 0:00:15]} 40. Ke2 {[%emt 0:00:20]} g6 {[%emt 0:02:02]} 41. Kf3 {[%emt 0:30:36]} Nc4 {[%emt 0:30:44]} 42. h4 {[%emt 0:00:24]} e5 {[%emt 0:10:13]} 43. Ke2 {[%emt 0:00:00]} Bd8 {[%emt 0:00:00]} 44. e4 {[%emt 0:00:00]} Bb6 {[%emt 0:00:00]} 45. f3 {[%emt 0:00:00]} fxe4 {[%emt 0:00:00]} 46. fxe4 {[%emt 0:00:00]} Bd4 {[%emt 0:00:00]} 47. Nd1 {[%emt 0:00:00]} Kd6 {[%emt 0:00:00]} 48. Kd3 {[%emt 0:00:00]} Nb2+ {[%emt 0:00:00]} 49. Nxb2 {[%emt 0:00:00]} Bxb2 {[%emt 0:00:00]} 50. g4 {[%emt 0:00:50]} Bc1 {[%emt 0:00:00]} 51. Ke2 {[%emt 0:00:10]} h6 {[%emt 0:00:00]} 52. Kf3 {[%emt 0:00:09]} Bd2 {[%emt 0:00:00]} 53. Kg2 {[%emt 0:00:33]} Ke6 {[%emt 0:00:00]} 54. Kf3 {[%emt 0:00:19]} h5 {[%emt 0:00:00]} 55. g5 {[%emt 0:00:28]} Bc1 {[%emt 0:00:00]} 56. Kg2 {[%emt 0:00:11]} Bb2 {[%emt 0:00:00]} 57. Kf3 {[%emt 0:00:22]} 1/2-1/2

[Event "WJCC U20 Girls 2019"]
[Site "New Delhi"]
[Date "2019.10.19"]
[Round "6.45"]
[White "Rathi Dhanashree"]
[Black "Rousseau, Christilla"]
[Result "1-0"]
[ECO "D12"]
[WhiteElo "1692"]
[BlackElo "1648"]
[Annotator "NA"]
[PlyCount "119"]
[EventDate "2019.10.15"]
[EventType "swiss"]
[EventCountry "IND"]
[SourceTitle "playchess.com"]
[Source "ChessBase"]
[SourceQuality "1"]
[TimeControl "40/5400+30:1800+30"]

1. d4 {[%emt 0:00:00]} d5 {[%emt 0:00:00]} 2. Nf3 {[%emt 0:00:00]} Nf6 {[%emt 0:00:00]} 3. e3 {[%emt 0:00:05]} Bf5 {[%emt 0:02:51]} 4. c4 {[%emt 0:00:36]} c6 {[%emt 0:00:07]} 5. Nc3 {[%emt 0:00:22]} e6 {[%emt 0:00:28]} 6. Be2 {[%emt 0:02:55]} h6 {[%emt 0:02:51]} 7. O-O {[%emt 0:02:48]} Be7 {[%emt 0:03:04]} 8. b3 {[%emt 0:04:23]} O-O {[%emt 0:01:23]} 9. Bb2 {[%emt 0:00:39]} Nbd7 {[%emt 0:01:02]} 10. h3 {[%emt 0:04:44]} Rc8 {[%emt 0:05:45]} 11. Bd3 {[%emt 0:05:27]} Ne4 {[%emt 0:17:23]} 12. Qc2 {[%emt 0:07:27]} Ndf6 {[%emt 0:03:20]} 13. Rad1 {[%emt 0:08:16]} Nxc3 {[%emt 0:05:04]} 14. Bxc3 {[%emt 0:00:43]} Bxd3 {[%emt 0:00:30]} 15. Qxd3 {[%emt 0:04:34]} Ne4 {[%emt 0:00:18]} 16. Bb2 {[%emt 0:02:38]} Qe8 {[%emt 0:04:36]} 17. Nd2 {[%emt 0:03:32]} f5 {[%emt 0:02:33]} 18. c5 {[%emt 0:07:00]} g5 {[%emt 0:06:27]} 19. Nxe4 {[%emt 0:02:15]} fxe4 {[%emt 0:00:26]} 20. Qe2 {[%emt 0:00:08]} h5 {[%emt 0:13:45]} 21. f3 {[%emt 0:04:40]} exf3 {[%emt 0:09:03]} 22. Rxf3 {[%emt 0:00:33]} Rxf3 {[%emt 0:00:11]} 23. gxf3 {[%emt 0:01:24]} Qg6 {[%emt 0:01:54]} 24. Kh2 {[%emt 0:01:53]} Qf5 {[%emt 0:04:43]} 25. Rg1 {[%emt 0:04:08]} Kh7 {[%emt 0:00:43]} 26. Bc1 {[%emt 0:01:20]} Rf8 {[%emt 0:04:43]} 27. Kg2 {[%emt 0:11:43]} Bd8 {[%emt 0:04:09]} 28. e4 {[%emt 0:05:35]} Qf6 {[%emt 0:00:42]} 29. e5 {[%emt 0:06:40]} Qf5 {[%emt 0:00:26]} 30. Rf1 {[%emt 0:00:33]} Ba5 {[%emt 0:02:15]} 31. f4 {[%emt 0:01:04]} g4 {[%emt 0:02:14]} 32. hxg4 {[%emt 0:00:13]} Rg8 {[%emt 0:00:45]} 33. g5 {[%emt 0:00:10]} Kg6 {[%emt 0:00:30]} 34. Rh1 {[%emt 0:00:14]} Rh8 {[%emt 0:00:18]} 35. Rh3 {[%emt 0:00:18]} Bd8 {[%emt 0:00:58]} 36. Qd3 {[%emt 0:03:11]} Ba5 {[%emt 0:00:21]} 37. Qxf5+ {[%emt 0:01:13]} Kxf5 {[%emt 0:00:13]} 38. Kf3 {[%emt 0:00:05]} Bc3 39. Be3 {[%emt 0:01:46]} Bb4 {[%emt 0:01:55]} 40. Bf2 {[%emt 0:01:58]} Bd2 {[%emt 0:00:20]} 41. Be3 {[%emt 0:31:15]} Bb4 {[%emt 0:30:31]} 42. Rh1 {[%emt 0:00:24]} Bc3 {[%emt 0:00:00]} 43. Rc1 {[%emt 0:00:00]} Bb4 {[%emt 0:00:00]} 44. a3 {[%emt 0:00:00]} Ba5 {[%emt 0:00:00]} 45. b4 {[%emt 0:00:00]} Bc7 {[%emt 0:00:00]} 46. a4 {[%emt 0:00:00]} Rg8 {[%emt 0:00:00]} 47. Bd2 {[%emt 0:00:00]} a6 {[%emt 0:00:00]} 48. Rh1 {[%emt 0:00:00]} Kg6 {[%emt 0:00:00]} 49. Rb1 {[%emt 0:00:00]} Kf5 {[%emt 0:00:00]} 50. b5 {[%emt 0:00:00]} axb5 {[%emt 0:00:00]} 51. axb5 {[%emt 0:00:00]} Ra8 {[%emt 0:00:00]} 52. bxc6 {[%emt 0:00:00]} Ra3+ {[%emt 0:00:00]} 53. Ke2 {[%emt 0:00:00]} bxc6 {[%emt 0:00:00]} 54. Rb7 {[%emt 0:00:00]} Bd8 {[%emt 0:05:49]} 55. Rh7 {[%emt 0:00:00]} Kg4 {[%emt 0:00:55]} 56. g6 {[%emt 0:00:00]} Kf5 {[%emt 0:00:47]} 57. g7 {[%emt 0:00:00]} Rg3 {[%emt 0:00:27]} 58. Rxh5+ {[%emt 0:00:00]} Ke4 {[%emt 0:00:20]} 59. Rg5 {[%emt 0:00:00]} Bxg5 {[%emt 0:00:27]} 60. fxg5 {[%emt 0:00:00]} 1-0

[Event "WJCC U20 Girls 2019"]
[Site "New Delhi"]
[Date "2019.10.19"]
[Round "6.46"]
[White "Reid, Caitlin"]
[Black "Lohani, Sujana"]
[Result "0-1"]
[ECO "B07"]
[WhiteElo "1489"]
[BlackElo "1671"]
[Annotator "NA"]
[PlyCount "98"]
[EventDate "2019.10.15"]
[EventType "swiss"]
[EventCountry "IND"]
[SourceTitle "playchess.com"]
[Source "ChessBase"]
[SourceQuality "1"]
[TimeControl "40/5400+30:1800+30"]

1. e4 {[%emt 0:00:00]} d6 {[%emt 0:00:00]} 2. d4 {[%emt 0:00:11]} Nf6 {[%emt 0:00:00]} 3. Nc3 {[%emt 0:00:24]} g6 {[%emt 0:00:11]} 4. Bg5 {[%emt 0:03:14]} Bg7 {[%emt 0:00:50]} 5. Qd2 {[%emt 0:01:04]} h6 {[%emt 0:04:06]} 6. Be3 {[%emt 0:00:29]} Ng4 {[%emt 0:03:20]} 7. Bc4 {[%emt 0:02:15]} O-O {[%emt 0:06:03]} 8. O-O-O {[%emt 0:00:57]} Nxe3 {[%emt 0:04:53]} 9. Qxe3 {[%emt 0:00:16]} Nd7 {[%emt 0:01:55]} 10. f4 {[%emt 0:01:26]} Kh7 {[%emt 0:08:42]} 11. g4 {[%emt 0:01:48]} c5 {[%emt 0:05:13]} 12. Nf3 {[%emt 0:02:02]} cxd4 {[%emt 0:10:32]} 13. Nxd4 {[%emt 0:00:25]} e5 {[%emt 0:06:16]} 14. Nf3 {[%emt 0:01:37]} Nb6 {[%emt 0:05:20]} 15. Be2 {[%emt 0:00:38]} Bxg4 {[%emt 0:04:47]} 16. fxe5 {[%emt 0:19:28]} Bxf3 {[%emt 0:02:23]} 17. Rxd6 {[%emt 0:01:54]} Qc7 {[%emt 0:06:32]} 18. Qxf3 {[%emt 0:10:37]} Bxe5 {[%emt 0:00:39]} 19. Nb5 {[%emt 0:01:11]} Qc5 {[%emt 0:06:30]} 20. Rd2 {[%emt 0:01:40]} a6 {[%emt 0:04:09]} 21. Nc3 {[%emt 0:00:10]} Rac8 {[%emt 0:03:00]} 22. Nd5 {[%emt 0:02:19]} Rc6 {[%emt 0:06:07]} 23. h4 {[%emt 0:01:33]} Nxd5 {[%emt 0:01:12]} 24. exd5 {[%emt 0:00:56]} Rf6 {[%emt 0:00:31]} 25. Qe4 {[%emt 0:00:45]} Bf4 {[%emt 0:00:47]} 26. h5 {[%emt 0:03:22]} Kg7 {[%emt 0:02:42]} 27. hxg6 {[%emt 0:03:36]} fxg6 {[%emt 0:00:48]} 28. Rhd1 {[%emt 0:00:54]} Qe3 {[%emt 0:01:24]} 29. Qc4 {[%emt 0:05:15]} b5 {[%emt 0:00:32]} 30. Qd3 {[%emt 0:04:02]} Rd8 {[%emt 0:02:55]} 31. Kb1 {[%emt 0:00:25]} Qc5 {[%emt 0:00:56]} 32. Qd4 {[%emt 0:01:09]} Qe7 {[%emt 0:01:10]} 33. Rd3 {[%emt 0:11:53]} Qxe2 {[%emt 0:00:40]} 34. Rc3 {[%emt 0:00:18]} Be5 {[%emt 0:00:38]} 35. Re3 {[%emt 0:04:43]} Bxd4 {[%emt 0:00:29]} 36. Rxe2 {[%emt 0:00:07]} Bc5 {[%emt 0:00:30]} 37. a3 {[%emt 0:01:10]} h5 {[%emt 0:00:43]} 38. b4 {[%emt 0:00:14]} Bd6 {[%emt 0:00:11]} 39. Kb2 {[%emt 0:00:38]} g5 {[%emt 0:00:35]} 40. Kb3 {[%emt 0:00:45]} h4 {[%emt 0:00:46]} 41. Rd3 {[%emt 0:32:02]} g4 {[%emt 0:30:41]} 42. Re4 {[%emt 0:03:40]} Rg6 {[%emt 0:00:00]} 43. c4 {[%emt 0:00:00]} bxc4+ {[%emt 0:00:00]} 44. Rxc4 {[%emt 0:00:00]} g3 {[%emt 0:00:00]} 45. Rdd4 {[%emt 0:00:00]} h3 {[%emt 0:00:00]} 46. Rc6 {[%emt 0:00:00]} g2 {[%emt 0:00:00]} 47. Rxa6 {[%emt 0:00:00]} g1=Q {[%emt 0:00:00]} 48. Ra7+ {[%emt 0:00:00]} Kg8 {[%emt 0:00:00]} 49. Rc4 {[%emt 0:00:00]} Qxa7 {[%emt 0:00:00]} 0-1